[Event "*** SCC Grand Prix: Titled Tuesday Blitz"]
[Site "Chess.com"]
[Date "2020.07.07"]
[Round "1"]
[White "StephenDedalus83"]
[Black "FontVella8"]
[Result "0-1"]
[WhiteElo "2803"]
[BlackElo "2442"]
[TimeControl "180+1"]
[EndTime "10:07:31 PDT"]
[Termination "FontVella8 won by resignation"]

1. e4 {[%clk 0:02:56.8]} 1... c6 {[%clk 0:02:58.9]} 2. d4 {[%clk 0:02:56.3]}
2... d5 {[%clk 0:02:58.5]} 3. e5 {[%clk 0:02:56.9]} 3... c5 {[%clk 0:02:56.8]}
4. Nf3 {[%clk 0:02:55]} 4... Nc6 {[%clk 0:02:54.1]} 5. c4 {[%clk 0:02:54.2]}
5... cxd4 {[%clk 0:02:50.1]} 6. cxd5 {[%clk 0:02:48.8]} 6... Qxd5 {[%clk
0:02:48.9]} 7. Nc3 {[%clk 0:02:45.7]} 7... Qa5 {[%clk 0:02:47.2]} 8. Nxd4 {[%clk
0:02:42.9]} 8... Qxe5+ {[%clk 0:02:46]} 9. Be3 {[%clk 0:02:42.9]} 9... Nf6
{[%clk 0:02:43.8]} 10. Nxc6 {[%clk 0:02:39.2]} 10... bxc6 {[%clk 0:02:43.5]} 11.
Qa4 {[%clk 0:02:38.4]} 11... Bd7 {[%clk 0:02:37]} 12. O-O-O {[%clk 0:02:36.4]}
12... e6 {[%clk 0:02:34.3]} 13. Bf4 {[%clk 0:02:27.3]} 13... Qc5 {[%clk
0:02:29.4]} 14. Kb1 {[%clk 0:02:07.2]} 14... Nd5 {[%clk 0:02:22.7]} 15. Ne4
{[%clk 0:02:05.7]} 15... Qb4 {[%clk 0:02:22.3]} 16. Qxb4 {[%clk 0:02:03.2]}
16... Bxb4 {[%clk 0:02:22.1]} 17. Bd6 {[%clk 0:02:00.1]} 17... Bxd6 {[%clk
0:02:15]} 18. Nxd6+ {[%clk 0:02:00]} 18... Ke7 {[%clk 0:02:15.6]} 19. Ne4 {[%clk
0:01:59]} 19... e5 {[%clk 0:02:13.2]} 20. Nc5 {[%clk 0:01:57.2]} 20... Bf5+
{[%clk 0:02:13.1]} 21. Bd3 {[%clk 0:01:57.1]} 21... Bxd3+ {[%clk 0:02:12.1]} 22.
Rxd3 {[%clk 0:01:56.9]} 22... f6 {[%clk 0:02:10.6]} 23. Rc1 {[%clk 0:01:56.5]}
23... Rab8 {[%clk 0:02:04]} 24. Ra3 {[%clk 0:01:54.8]} 24... Ra8 {[%clk
0:01:52.4]} 25. Rc4 {[%clk 0:01:45.5]} 25... Rhb8 {[%clk 0:01:46.7]} 26. Rca4
{[%clk 0:01:40]} 26... Kd6 {[%clk 0:00:43.6]} 27. Ne4+ {[%clk 0:01:38.9]} 27...
Kc7 {[%clk 0:00:41.5]} 28. Rxa7+ {[%clk 0:01:38.7]} 28... Rxa7 {[%clk
0:00:41.8]} 29. Rxa7+ {[%clk 0:01:38.2]} 29... Rb7 {[%clk 0:00:42.2]} 30. Ra8
{[%clk 0:01:33.2]} 30... Kb6 {[%clk 0:00:36.9]} 31. Kc2 {[%clk 0:01:27]} 31...
Nf4 {[%clk 0:00:35]} 32. g3 {[%clk 0:01:24.4]} 32... Ne6 {[%clk 0:00:35.2]} 33.
Kc3 {[%clk 0:01:22]} 33... Rd7 {[%clk 0:00:34.4]} 34. Re8 {[%clk 0:01:15.6]}
34... Nd4 {[%clk 0:00:33.7]} 35. b4 {[%clk 0:01:12.5]} 35... Nb5+ {[%clk
0:00:32.9]} 36. Kc2 {[%clk 0:01:07.9]} 36... Rd4 {[%clk 0:00:31.5]} 37. Nc5
{[%clk 0:01:06]} 37... Rxb4 {[%clk 0:00:29.3]} 38. Nd7+ {[%clk 0:01:06]} 38...
Kc7 {[%clk 0:00:26.3]} 39. Re7 {[%clk 0:01:05.5]} 39... Kd6 {[%clk 0:00:26.5]}
40. Rxg7 {[%clk 0:01:05.4]} 40... Nd4+ {[%clk 0:00:26.8]} 41. Kc3 {[%clk
0:01:01.3]} 41... Rb7 {[%clk 0:00:26.6]} 42. Nxf6 {[%clk 0:00:59.2]} 42... Rxg7
{[%clk 0:00:20.5]} 43. Ne8+ {[%clk 0:00:59.6]} 43... Kd5 {[%clk 0:00:20.9]} 44.
Nxg7 {[%clk 0:01:00.2]} 44... Ke4 {[%clk 0:00:21.6]} 45. a4 {[%clk 0:00:53.6]}
45... Kf3 {[%clk 0:00:19.5]} 46. a5 {[%clk 0:00:53.4]} 46... Kxf2 {[%clk
0:00:19.2]} 47. a6 {[%clk 0:00:52.8]} 47... Nb5+ {[%clk 0:00:16.3]} 48. Kd3
{[%clk 0:00:52.8]} 48... Kf3 {[%clk 0:00:15.8]} 49. Nf5 {[%clk 0:00:52.3]} 49...
e4+ {[%clk 0:00:16.1]} 50. Kd2 {[%clk 0:00:52.2]} 50... c5 {[%clk 0:00:15.6]}
51. Ne3 {[%clk 0:00:51.9]} 51... h5 {[%clk 0:00:14.5]} 52. Nc4 {[%clk
0:00:48.4]} 52... Kg2 {[%clk 0:00:12.7]} 53. Nd6 {[%clk 0:00:45.6]} 53... Nxd6
{[%clk 0:00:12.8]} 54. a7 {[%clk 0:00:43.7]} 54... Nc4+ {[%clk 0:00:12.8]} 55.
Ke2 {[%clk 0:00:43.3]} 55... Nb6 {[%clk 0:00:13.4]} 56. Ke3 {[%clk 0:00:42.9]}
56... Kxh2 {[%clk 0:00:13.5]} 0-1

[Event "*** SCC Grand Prix: Titled Tuesday Blitz"]
[Site "Chess.com"]
[Date "2020.07.07"]
[Round "1"]
[White "ElviraBerend"]
[Black "vugarrasulov"]
[Result "0-1"]
[WhiteElo "2423"]
[BlackElo "2815"]
[TimeControl "180+1"]
[EndTime "10:07:31 PDT"]
[Termination "vugarrasulov won by resignation"]

1. d4 {[%clk 0:02:59.1]} 1... Nf6 {[%clk 0:02:59.6]} 2. c4 {[%clk 0:02:58.6]}
2... e6 {[%clk 0:02:59.8]} 3. g3 {[%clk 0:02:58]} 3... d5 {[%clk 0:02:59.1]} 4.
Nf3 {[%clk 0:02:56.7]} 4... Bb4+ {[%clk 0:02:59.4]} 5. Bd2 {[%clk 0:02:55.7]}
5... Be7 {[%clk 0:02:59.9]} 6. Bg2 {[%clk 0:02:55.3]} 6... O-O {[%clk
0:03:00.4]} 7. O-O {[%clk 0:02:55.4]} 7... dxc4 {[%clk 0:02:56.5]} 8. Qc2 {[%clk
0:02:54.2]} 8... b5 {[%clk 0:02:53.4]} 9. a4 {[%clk 0:02:51.4]} 9... b4 {[%clk
0:02:48.1]} 10. Ne5 {[%clk 0:02:46.8]} 10... Qxd4 {[%clk 0:02:47.5]} 11. Nxc4
{[%clk 0:02:26.8]} 11... Nd5 {[%clk 0:02:32.5]} 12. e4 {[%clk 0:02:24.2]} 12...
Ba6 {[%clk 0:02:27.4]} 13. Rc1 {[%clk 0:02:18.9]} 13... Nb6 {[%clk 0:01:55.6]}
14. Nxb6 {[%clk 0:01:50.4]} 14... axb6 {[%clk 0:01:52.1]} 15. Be3 {[%clk
0:01:42.3]} 15... Qd3 {[%clk 0:01:42.2]} 16. Qxc7 {[%clk 0:01:39.5]} 16... Bd8
{[%clk 0:01:22]} 17. Qf4 {[%clk 0:01:27.5]} 17... e5 {[%clk 0:01:14.8]} 18. Qg4
{[%clk 0:01:23.2]} 18... Qd7 {[%clk 0:01:12.6]} 19. Qh5 {[%clk 0:01:15.8]} 19...
Nc6 {[%clk 0:01:10.4]} 20. Nd2 {[%clk 0:01:10]} 20... g6 {[%clk 0:01:05.4]} 21.
Qh6 {[%clk 0:01:08.9]} 21... Bf6 {[%clk 0:01:03.3]} 22. Nc4 {[%clk 0:01:03.8]}
22... Bxc4 {[%clk 0:01:03.5]} 23. Rxc4 {[%clk 0:01:03]} 23... b5 {[%clk
0:01:04.1]} 24. Rcc1 {[%clk 0:00:53.3]} 24... bxa4 {[%clk 0:01:03.2]} 25. Bh3
{[%clk 0:00:50.2]} 25... Qb7 {[%clk 0:01:00.5]} 26. Bf1 {[%clk 0:00:43.6]} 26...
Nd4 {[%clk 0:00:58.8]} 27. Bc4 {[%clk 0:00:41.6]} 27... Qxe4 {[%clk 0:00:56.9]}
28. Bxd4 {[%clk 0:00:38.9]} 28... Qxd4 {[%clk 0:00:57]} 29. Bb5 {[%clk
0:00:26.6]} 29... Qxb2 {[%clk 0:00:52.8]} 30. Bxa4 {[%clk 0:00:24.2]} 30... Bg7
{[%clk 0:00:46.6]} 31. Qg5 {[%clk 0:00:22.4]} 31... h6 {[%clk 0:00:46.5]} 32.
Qe3 {[%clk 0:00:21]} 32... Rfc8 {[%clk 0:00:45.6]} 33. Rcb1 {[%clk 0:00:17.6]}
33... Qc3 {[%clk 0:00:45.7]} 34. Qe2 {[%clk 0:00:14.6]} 34... Ra5 {[%clk
0:00:38.6]} 35. Ra2 {[%clk 0:00:12.1]} 35... Rca8 {[%clk 0:00:37.9]} 36. Rc2
{[%clk 0:00:10.9]} 36... Qd4 {[%clk 0:00:38]} 37. Bb3 {[%clk 0:00:10.3]} 37...
Ra1 {[%clk 0:00:38.4]} 38. Rcc1 {[%clk 0:00:10.6]} 38... Rxb1 {[%clk 0:00:38.4]}
39. Rxb1 {[%clk 0:00:10.9]} 39... e4 {[%clk 0:00:38.5]} 40. Qg4 {[%clk
0:00:08.6]} 40... e3 {[%clk 0:00:25.5]} 41. Qxd4 {[%clk 0:00:06]} 41... Bxd4
{[%clk 0:00:24.7]} 42. fxe3 {[%clk 0:00:06.9]} 42... Bxe3+ {[%clk 0:00:25.5]}
43. Kg2 {[%clk 0:00:07.6]} 43... Bd2 {[%clk 0:00:25.8]} 44. Kf3 {[%clk
0:00:07.8]} 44... Bc3 {[%clk 0:00:25.7]} 45. h4 {[%clk 0:00:08]} 45... Kg7
{[%clk 0:00:26]} 46. Bc4 {[%clk 0:00:08]} 46... Rc8 {[%clk 0:00:25.6]} 47. Ke4
{[%clk 0:00:07.4]} 47... Rxc4+ {[%clk 0:00:25.5]} 0-1

[Event "*** SCC Grand Prix: Titled Tuesday Blitz"]
[Site "Chess.com"]
[Date "2020.07.07"]
[Round "1"]
[White "saraswathii"]
[Black "GMKrikor"]
[Result "0-1"]
[WhiteElo "2350"]
[BlackElo "2672"]
[TimeControl "180+1"]
[EndTime "10:07:31 PDT"]
[Termination "GMKrikor won by resignation"]

1. e4 {[%clk 0:03:00.9]} 1... g6 {[%clk 0:02:59.1]} 2. d3 {[%clk 0:02:57.8]}
2... Bg7 {[%clk 0:02:57.1]} 3. Nf3 {[%clk 0:02:52.1]} 3... c5 {[%clk 0:02:55.7]}
4. g3 {[%clk 0:02:50.4]} 4... Nc6 {[%clk 0:02:55.6]} 5. Bg2 {[%clk 0:02:50.1]}
5... e5 {[%clk 0:02:53.1]} 6. O-O {[%clk 0:02:45.8]} 6... Nge7 {[%clk
0:02:52.9]} 7. c3 {[%clk 0:02:44.6]} 7... O-O {[%clk 0:02:52.1]} 8. Be3 {[%clk
0:02:44.4]} 8... d6 {[%clk 0:02:49.5]} 9. Na3 {[%clk 0:02:38.2]} 9... h6 {[%clk
0:02:46.1]} 10. Nc2 {[%clk 0:02:36.4]} 10... f5 {[%clk 0:02:43]} 11. exf5 {[%clk
0:02:33]} 11... Nxf5 {[%clk 0:02:33.7]} 12. d4 {[%clk 0:02:27.2]} 12... cxd4
{[%clk 0:02:32.3]} 13. cxd4 {[%clk 0:02:24.9]} 13... e4 {[%clk 0:02:31.2]} 14.
Nd2 {[%clk 0:02:21.8]} 14... d5 {[%clk 0:02:31.5]} 15. Nb3 {[%clk 0:02:20.5]}
15... b6 {[%clk 0:02:26]} 16. Rc1 {[%clk 0:02:16.8]} 16... Be6 {[%clk
0:02:16.6]} 17. Qd2 {[%clk 0:02:11.7]} 17... Rc8 {[%clk 0:02:14.5]} 18. Nb4
{[%clk 0:01:58.2]} 18... Nxb4 {[%clk 0:02:09.4]} 19. Qxb4 {[%clk 0:01:59.1]}
19... Qd7 {[%clk 0:02:08.9]} 20. Rxc8 {[%clk 0:01:46.8]} 20... Rxc8 {[%clk
0:02:08.1]} 21. Rc1 {[%clk 0:01:43.7]} 21... Bf8 {[%clk 0:01:52.4]} 22. Qd2
{[%clk 0:01:40]} 22... Qa4 {[%clk 0:01:30.3]} 23. Rxc8 {[%clk 0:01:31.7]} 23...
Bxc8 {[%clk 0:01:31.2]} 24. Nc1 {[%clk 0:01:27.6]} 24... Bg7 {[%clk 0:01:27.2]}
25. b3 {[%clk 0:01:18.7]} 25... Qc6 {[%clk 0:01:26.9]} 26. Ne2 {[%clk 0:01:12]}
26... Ba6 {[%clk 0:01:26.8]} 27. Nf4 {[%clk 0:01:04.8]} 27... g5 {[%clk
0:01:07]} 28. Nh5 {[%clk 0:00:58.7]} 28... Bxd4 {[%clk 0:01:04.8]} 29. Bh3
{[%clk 0:00:45.8]} 29... Nxe3 {[%clk 0:00:54.9]} 30. fxe3 {[%clk 0:00:44]} 30...
Be5 {[%clk 0:00:44.5]} 31. Bf5 {[%clk 0:00:29.1]} 31... Bd3 {[%clk 0:00:41.6]}
32. Kg2 {[%clk 0:00:24.2]} 32... Kf8 {[%clk 0:00:38.9]} 33. h4 {[%clk
0:00:21.8]} 33... Ke7 {[%clk 0:00:34.3]} 34. hxg5 {[%clk 0:00:21.3]} 34... hxg5
{[%clk 0:00:35.2]} 35. Qf2 {[%clk 0:00:20.7]} 35... Qc2 {[%clk 0:00:34.2]} 36.
Bg4 {[%clk 0:00:15.8]} 36... Qxf2+ {[%clk 0:00:32.5]} 37. Kxf2 {[%clk
0:00:16.7]} 37... a5 {[%clk 0:00:31.1]} 38. Bd1 {[%clk 0:00:15.7]} 38... b5
{[%clk 0:00:29.7]} 39. g4 {[%clk 0:00:15.6]} 39... b4 {[%clk 0:00:27.6]} 40. Ng3
{[%clk 0:00:15.3]} 40... Bxg3+ {[%clk 0:00:26.4]} 41. Kxg3 {[%clk 0:00:16.2]}
41... Bb1 {[%clk 0:00:26.8]} 42. Kf2 {[%clk 0:00:16.1]} 42... Bxa2 {[%clk
0:00:27.2]} 43. Bc2 {[%clk 0:00:16]} 43... a4 {[%clk 0:00:20.6]} 44. bxa4 {[%clk
0:00:10.7]} 44... b3 {[%clk 0:00:21.5]} 0-1

[Event "*** SCC Grand Prix: Titled Tuesday Blitz"]
[Site "Chess.com"]
[Date "2020.07.07"]
[Round "1"]
[White "suyu28"]
[Black "ViktoriyaTarasova"]
[Result "1-0"]
[WhiteElo "2575"]
[BlackElo "2237"]
[TimeControl "180+1"]
[EndTime "10:07:31 PDT"]
[Termination "suyu28 won by resignation"]

1. Nf3 {[%clk 0:02:55.3]} 1... Nf6 {[%clk 0:02:52.6]} 2. g3 {[%clk 0:02:54.8]}
2... e6 {[%clk 0:02:52.2]} 3. Bg2 {[%clk 0:02:54.2]} 3... b6 {[%clk 0:02:49.1]}
4. O-O {[%clk 0:02:53.4]} 4... Bb7 {[%clk 0:02:48.7]} 5. d4 {[%clk 0:02:46.2]}
5... c5 {[%clk 0:02:40.6]} 6. c3 {[%clk 0:02:45]} 6... Be7 {[%clk 0:02:35.4]} 7.
b3 {[%clk 0:02:36.6]} 7... O-O {[%clk 0:02:34.8]} 8. Bb2 {[%clk 0:02:36.1]} 8...
Qc7 {[%clk 0:02:29]} 9. c4 {[%clk 0:02:34.8]} 9... cxd4 {[%clk 0:02:25.3]} 10.
Qxd4 {[%clk 0:02:19]} 10... Nc6 {[%clk 0:02:17.1]} 11. Qd2 {[%clk 0:02:18.2]}
11... Rfd8 {[%clk 0:02:14.2]} 12. Nc3 {[%clk 0:02:16.1]} 12... d5 {[%clk
0:02:09.8]} 13. cxd5 {[%clk 0:02:15.6]} 13... Nxd5 {[%clk 0:01:58.2]} 14. Nxd5
{[%clk 0:02:04.6]} 14... Rxd5 {[%clk 0:01:57.5]} 15. Qc2 {[%clk 0:02:05.5]}
15... Rc5 {[%clk 0:01:49.9]} 16. Qb1 {[%clk 0:02:04.4]} 16... Rd8 {[%clk
0:01:31.2]} 17. a3 {[%clk 0:02:03.2]} 17... a5 {[%clk 0:01:29.7]} 18. Rc1 {[%clk
0:01:56.9]} 18... Rxc1+ {[%clk 0:01:28.8]} 19. Qxc1 {[%clk 0:01:55.7]} 19... Qd7
{[%clk 0:01:27]} 20. Qc2 {[%clk 0:01:48.6]} 20... h6 {[%clk 0:01:21.3]} 21. Rc1
{[%clk 0:01:47.4]} 21... Rc8 {[%clk 0:01:07]} 22. Rd1 {[%clk 0:01:45.3]} 22...
Qe8 {[%clk 0:01:07.3]} 23. Qb1 {[%clk 0:01:43.3]} 23... Qf8 {[%clk 0:01:06.8]}
24. Qa1 {[%clk 0:01:42.4]} 24... Ba6 {[%clk 0:01:06.1]} 25. e3 {[%clk
0:01:33.9]} 25... Rd8 {[%clk 0:01:03.2]} 26. Rxd8 {[%clk 0:01:27.5]} 26... Nxd8
{[%clk 0:01:02.9]} 27. Ne5 {[%clk 0:01:25]} 27... Qe8 {[%clk 0:00:54.2]} 28. Nc4
{[%clk 0:01:16.3]} 28... Bxc4 {[%clk 0:00:50.1]} 29. bxc4 {[%clk 0:01:15.9]}
29... Bf8 {[%clk 0:00:50.8]} 30. Bd4 {[%clk 0:01:12.6]} 30... b5 {[%clk
0:00:38.6]} 31. c5 {[%clk 0:01:08]} 31... Nc6 {[%clk 0:00:38.7]} 32. Qb1 {[%clk
0:01:02.7]} 32... Na7 {[%clk 0:00:33.4]} 33. c6 {[%clk 0:00:58.4]} 33... Qb8
{[%clk 0:00:26.8]} 34. Bxa7 {[%clk 0:00:50.8]} 34... Qxa7 {[%clk 0:00:27.2]} 35.
Qxb5 {[%clk 0:00:50.5]} 35... Bxa3 {[%clk 0:00:24.9]} 36. Be4 {[%clk 0:00:50.5]}
36... Bd6 {[%clk 0:00:23.4]} 37. Bc2 {[%clk 0:00:49.1]} 37... g6 {[%clk
0:00:22.4]} 38. Qd3 {[%clk 0:00:45.4]} 38... Be5 {[%clk 0:00:18.6]} 39. h4
{[%clk 0:00:40]} 39... Kg7 {[%clk 0:00:18.5]} 40. h5 {[%clk 0:00:39.9]} 40...
gxh5 {[%clk 0:00:16.9]} 41. Qh7+ {[%clk 0:00:39.1]} 41... Kf6 {[%clk 0:00:17.8]}
42. Qxh6+ {[%clk 0:00:36.1]} 42... Ke7 {[%clk 0:00:18.3]} 43. Qxh5 {[%clk
0:00:36.5]} 43... Qc5 {[%clk 0:00:18.5]} 44. Ba4 {[%clk 0:00:33.4]} 44... Qc4
{[%clk 0:00:17.7]} 45. Qxe5 {[%clk 0:00:32.1]} 45... Qxa4 {[%clk 0:00:17.4]} 46.
Qc7+ {[%clk 0:00:32]} 46... Kf6 {[%clk 0:00:17]} 47. Qd8+ {[%clk 0:00:32.2]}
47... Kg7 {[%clk 0:00:16.2]} 48. c7 {[%clk 0:00:33.1]} 48... Qa1+ {[%clk
0:00:15.2]} 49. Kg2 {[%clk 0:00:32.4]} 1-0

[Event "*** SCC Grand Prix: Titled Tuesday Blitz"]
[Site "Chess.com"]
[Date "2020.07.07"]
[Round "1"]
[White "GianmarcoVaR"]
[Black "harlem4brew"]
[Result "1-0"]
[WhiteElo "2522"]
[BlackElo "2130"]
[TimeControl "180+1"]
[EndTime "10:07:32 PDT"]
[Termination "GianmarcoVaR won by resignation"]

1. d4 {[%clk 0:02:59.8]} 1... Nf6 {[%clk 0:02:59.6]} 2. c4 {[%clk 0:03:00.2]}
2... d5 {[%clk 0:02:55.5]} 3. cxd5 {[%clk 0:02:59.3]} 3... Nxd5 {[%clk
0:02:55.3]} 4. e4 {[%clk 0:02:58.8]} 4... Nb6 {[%clk 0:02:53.6]} 5. Nc3 {[%clk
0:02:59]} 5... c6 {[%clk 0:02:52.4]} 6. Be3 {[%clk 0:02:56.3]} 6... e6 {[%clk
0:02:50.5]} 7. Qd2 {[%clk 0:02:56.3]} 7... Bb4 {[%clk 0:02:47.9]} 8. Nf3 {[%clk
0:02:55.2]} 8... N8d7 {[%clk 0:02:46.5]} 9. a3 {[%clk 0:02:55.3]} 9... Bxc3
{[%clk 0:02:39.2]} 10. bxc3 {[%clk 0:02:56.2]} 10... Nf6 {[%clk 0:02:38.6]} 11.
Bd3 {[%clk 0:02:56.5]} 11... c5 {[%clk 0:02:35.5]} 12. O-O {[%clk 0:02:56.5]}
12... c4 {[%clk 0:02:34.4]} 13. Bc2 {[%clk 0:02:56]} 13... h6 {[%clk 0:02:31.5]}
14. a4 {[%clk 0:02:56.1]} 14... a5 {[%clk 0:02:31]} 15. Rfb1 {[%clk 0:02:52.8]}
15... Ra6 {[%clk 0:02:27.8]} 16. Ne5 {[%clk 0:02:26.6]} 16... Qc7 {[%clk
0:02:26.8]} 17. Rb5 {[%clk 0:02:25.4]} 17... Nfd7 {[%clk 0:02:23.7]} 18. f4
{[%clk 0:02:21.2]} 18... Nxe5 {[%clk 0:02:20]} 19. fxe5 {[%clk 0:02:22.1]} 19...
Bd7 {[%clk 0:02:18.9]} 20. Rbb1 {[%clk 0:02:22.5]} 20... Nc8 {[%clk 0:02:15.9]}
21. Rf1 {[%clk 0:02:20]} 21... Qd8 {[%clk 0:02:06.7]} 22. d5 {[%clk 0:02:18.6]}
22... exd5 {[%clk 0:02:02.7]} 23. exd5 {[%clk 0:02:18.3]} 23... Ne7 {[%clk
0:02:00.2]} 24. Qd4 {[%clk 0:01:56.3]} 24... O-O {[%clk 0:01:52.4]} 25. Qxc4
{[%clk 0:01:54.8]} 25... Qc8 {[%clk 0:01:43.3]} 26. Qe4 {[%clk 0:01:39.7]} 26...
g6 {[%clk 0:01:20.6]} 27. Bxh6 {[%clk 0:01:14.9]} 27... Bf5 {[%clk 0:01:15.6]}
28. Qe2 {[%clk 0:01:13.1]} 28... Qxc3 {[%clk 0:01:10.1]} 29. Bxf8 {[%clk
0:01:10]} 29... Kxf8 {[%clk 0:01:05.2]} 30. Bxf5 {[%clk 0:01:07.6]} 30... Nxf5
{[%clk 0:01:04]} 31. d6 {[%clk 0:01:06.3]} 31... Qd4+ {[%clk 0:01:02.9]} 32. Kh1
{[%clk 0:01:05]} 32... Qh4 {[%clk 0:00:58.8]} 33. Qf2 {[%clk 0:01:02.8]} 33...
Qh8 {[%clk 0:00:52.7]} 34. d7 {[%clk 0:01:01.5]} 34... Kg7 {[%clk 0:00:51.4]}
35. Rad1 {[%clk 0:01:00.6]} 35... Ra8 {[%clk 0:00:49.5]} 36. Kg1 {[%clk
0:00:57.7]} 36... Re8 {[%clk 0:00:47.7]} 37. dxe8=Q {[%clk 0:00:56.5]} 37...
Qxe8 {[%clk 0:00:45.5]} 38. g4 {[%clk 0:00:56.2]} 38... Nh6 {[%clk 0:00:42.2]}
39. Qf6+ {[%clk 0:00:56.4]} 39... Kh7 {[%clk 0:00:41.4]} 40. e6 {[%clk
0:00:56.2]} 40... Qxa4 {[%clk 0:00:40.4]} 41. exf7 {[%clk 0:00:39.9]} 41...
Qxg4+ {[%clk 0:00:40.1]} 42. Kh1 {[%clk 0:00:39.9]} 42... Qe4+ {[%clk
0:00:39.3]} 43. Qf3 {[%clk 0:00:39.8]} 43... Qxf3+ {[%clk 0:00:27.1]} 44. Rxf3
{[%clk 0:00:39.3]} 44... Nxf7 {[%clk 0:00:26.8]} 45. Rxf7+ {[%clk 0:00:39.6]}
45... Kh6 {[%clk 0:00:27.4]} 46. Rxb7 {[%clk 0:00:39.7]} 46... a4 {[%clk
0:00:28]} 47. Ra7 {[%clk 0:00:38.4]} 47... a3 {[%clk 0:00:28.9]} 48. Rxa3 {[%clk
0:00:38.8]} 48... g5 {[%clk 0:00:28.9]} 49. Rd6+ {[%clk 0:00:37.7]} 49... Kh5
{[%clk 0:00:29.4]} 50. Rg3 {[%clk 0:00:37.4]} 50... g4 {[%clk 0:00:28.7]} 51.
Rd5+ {[%clk 0:00:37.5]} 51... Kh4 {[%clk 0:00:28.6]} 52. Rd4 {[%clk 0:00:36.8]}
52... Kg5 {[%clk 0:00:28.4]} 53. Rgxg4+ {[%clk 0:00:35.8]} 53... Kf5 {[%clk
0:00:29.3]} 54. Rde4 {[%clk 0:00:34.7]} 1-0

[Event "*** SCC Grand Prix: Titled Tuesday Blitz"]
[Site "Chess.com"]
[Date "2020.07.07"]
[Round "1"]
[White "Ziachess74"]
[Black "gui_borba"]
[Result "1/2-1/2"]
[WhiteElo "2646"]
[BlackElo "2339"]
[TimeControl "180+1"]
[EndTime "10:07:33 PDT"]
[Termination "Game drawn by agreement"]

1. d4 {[%clk 0:03:00.9]} 1... Nf6 {[%clk 0:02:59.8]} 2. c4 {[%clk 0:02:59.2]}
2... e6 {[%clk 0:03:00.1]} 3. Nc3 {[%clk 0:02:58.6]} 3... Bb4 {[%clk 0:03:00.7]}
4. Bd2 {[%clk 0:02:58.7]} 4... c5 {[%clk 0:02:59.2]} 5. dxc5 {[%clk 0:02:52.2]}
5... O-O {[%clk 0:02:58.5]} 6. Nf3 {[%clk 0:02:51.3]} 6... Na6 {[%clk
0:02:58.1]} 7. e3 {[%clk 0:02:45.3]} 7... Nxc5 {[%clk 0:02:57.8]} 8. Be2 {[%clk
0:02:43.8]} 8... b6 {[%clk 0:02:57.1]} 9. O-O {[%clk 0:02:42.1]} 9... Bb7 {[%clk
0:02:56.7]} 10. a3 {[%clk 0:02:34]} 10... Bxc3 {[%clk 0:02:56.2]} 11. Bxc3
{[%clk 0:02:34.9]} 11... Nce4 {[%clk 0:02:55.4]} 12. Bd4 {[%clk 0:02:25.4]}
12... Rc8 {[%clk 0:02:52.7]} 13. Rc1 {[%clk 0:02:18.7]} 13... Qe7 {[%clk
0:02:49.4]} 14. Qa4 {[%clk 0:02:03.1]} 14... Ra8 {[%clk 0:02:24.2]} 15. b4
{[%clk 0:01:52.7]} 15... d5 {[%clk 0:02:17.7]} 16. c5 {[%clk 0:01:49]} 16...
bxc5 {[%clk 0:02:06]} 17. bxc5 {[%clk 0:01:48.4]} 17... a5 {[%clk 0:02:00.2]}
18. c6 {[%clk 0:01:41.5]} 18... Ba6 {[%clk 0:02:00.4]} 19. Bxa6 {[%clk
0:01:36.3]} 19... Rxa6 {[%clk 0:02:01.3]} 20. Ne5 {[%clk 0:01:18.2]} 20... Rc8
{[%clk 0:02:00.5]} 21. Qb5 {[%clk 0:01:12.6]} 21... Raa8 {[%clk 0:01:57.1]} 22.
Qb7 {[%clk 0:01:09.9]} 22... Qf8 {[%clk 0:01:44.8]} 23. Nd7 {[%clk 0:00:54.8]}
23... Nxd7 {[%clk 0:01:27.2]} 24. cxd7 {[%clk 0:00:54.8]} 24... Rcb8 {[%clk
0:01:27.6]} 25. Qc7 {[%clk 0:00:48.5]} 25... Qd8 {[%clk 0:01:12.6]} 26. f3
{[%clk 0:00:26]} 26... Nd2 {[%clk 0:01:04.1]} 27. Qe5 {[%clk 0:00:20.6]} 27...
Qf8 {[%clk 0:00:54]} 28. Rfd1 {[%clk 0:00:18]} 28... Nc4 {[%clk 0:00:54.3]} 29.
Qc7 {[%clk 0:00:16.5]} 29... Qd8 {[%clk 0:00:54.1]} 30. Qg3 {[%clk 0:00:15.3]}
30... Qf8 {[%clk 0:00:44.7]} 31. Bf6 {[%clk 0:00:13.5]} 31... Nxe3 {[%clk
0:00:39.3]} 32. Re1 {[%clk 0:00:06.9]} 32... Nf5 {[%clk 0:00:39.3]} 33. Qg4
{[%clk 0:00:06.5]} 33... Kh8 {[%clk 0:00:19.9]} 34. d8=Q {[%clk 0:00:06.2]}
34... Rxd8 {[%clk 0:00:20.4]} 35. Bxd8 {[%clk 0:00:07]} 35... Qxd8 {[%clk
0:00:21.1]} 36. a4 {[%clk 0:00:07.1]} 36... Qd6 {[%clk 0:00:20.6]} 37. Kh1
{[%clk 0:00:07.1]} 37... Rb8 {[%clk 0:00:20]} 38. Qg5 {[%clk 0:00:05.9]} 38...
h6 {[%clk 0:00:19.7]} 39. Qd2 {[%clk 0:00:05.8]} 39... Rb4 {[%clk 0:00:19.3]}
40. Rc8+ {[%clk 0:00:03.2]} 40... Kh7 {[%clk 0:00:19.1]} 41. Qc2 {[%clk
0:00:03.8]} 1/2-1/2